fUST/lending_fUST_20250511
["ID","MTS","AMOUNT","RATE_DAILY","PERIOD"]
[360664089,1746919864744,-1549.18,9.863e-05,2]
[360664090,1746919864754,-755.49,9.863e-05,2]
[360664091,1746919864763,-400.0,9.863e-05,2]
[360664092,1746919864774,-400.0,9.863e-05,2]
[360664093,1746919864783,-400.0,9.863e-05,2]
[360664094,1746919864793,-1593.66,9.863e-05,2]
[360664095,1746919864803,-689.13,9.863e-05,2]
[360664096,1746919864812,-400.0,9.863e-05,2]
[360664097,1746919864822,-449.93,9.863e-05,2]
[360664098,1746919864831,-400.0,9.863e-05,2]
[360664099,1746919864841,-400.0,9.863e-05,2]
[360664100,1746919864855,-602.99,9.863e-05,2]
[360664101,1746919864865,-400.0,9.863e-05,2]
[360664102,1746919864875,-400.0,9.863e-05,2]
[360664103,1746919864883,-400.0,9.863e-05,2]
[360664104,1746919864893,-400.0,9.863e-05,2]
[360664105,1746919864903,-482.48,9.863e-05,2]
[360664106,1746919864913,-400.0,9.863e-05,2]
[360664107,1746919864922,-688.41,9.863e-05,2]
[360664108,1746919864931,-615.65,9.863e-05,2]
[360664109,1746919864942,-1027.73,9.863e-05,2]
[360664110,1746919864952,-400.0,9.863e-05,2]
[360664111,1746919864961,-400.0,9.863e-05,2]
[360664112,1746919864970,-456.06,9.863e-05,2]
[360664113,1746919864980,-400.0,9.863e-05,2]
[360664114,1746919864990,-400.0,9.863e-05,2]
[360664115,1746919865000,-400.0,9.863e-05,2]
[360664116,1746919865010,-400.0,9.863e-05,2]
[360664117,1746919865019,-400.0,9.863e-05,2]
[360664118,1746919865029,-151.0,9.863e-05,2]
[360664119,1746919865039,-489.07,9.863e-05,2]
[360664120,1746919865049,-532.53,9.863e-05,2]
[360664121,1746919865059,-400.0,9.863e-05,2]
[360664122,1746919865069,-400.0,9.863e-05,2]
[360664123,1746919865079,-1221.07,9.863e-05,2]
[360664124,1746919865088,-400.0,9.863e-05,2]
[360664125,1746919865098,-400.0,9.863e-05,2]
[360664126,1746919865107,-400.0,9.863e-05,2]
[360664127,1746919865118,-400.0,9.863e-05,2]
[360664128,1746919865128,-400.0,9.863e-05,2]
[360664129,1746919865137,-400.0,9.863e-05,2]
[360664130,1746919865147,-172.24,9.863e-05,2]
[360664131,1746919865156,-326.36,9.863e-05,2]
[360664132,1746919865165,-400.0,9.863e-05,2]
[360664133,1746919865175,-400.0,9.863e-05,2]
[360664134,1746919865183,-400.0,9.863e-05,2]
[360664135,1746919865193,-400.0,9.863e-05,2]
[360664136,1746919865203,-400.0,9.863e-05,2]
[360664137,1746919865212,-400.0,9.863e-05,2]
[360664138,1746919865222,-3294.957,0.0001,2]
[360664139,1746919865231,-151.0,0.0001,2]
[360664140,1746919865241,-151.680344,0.0001,2]
[360664141,1746919865250,-151.0,0.0001,2]
[360664142,1746919865259,-151.0,0.0001,2]
[360664143,1746919865268,-151.0,0.0001,2]
[360664144,1746919865278,-151.0,0.0001,2]
[360664145,1746919865287,-151.0,0.0001,2]
[360664146,1746919865297,-151.0,0.0001,2]
[360664147,1746919865306,-151.0,0.0001,2]
[360664148,1746919865315,-279.82249697,0.0001,2]
[360664149,1746919865325,-32842.80016957,0.0001,2]
[360664150,1746919865335,-151.0,0.0001,2]
[360664151,1746919865344,-32842.80016953,0.0001,2]
[360664152,1746919865355,-151.0,0.0001,2]
[360664153,1746919865365,-151.0,0.0001,2]
[360664154,1746919865374,-151.0,0.00010041,2]
[360664155,1746919865383,-151.0,0.00010041,2]
[360664156,1746919865392,-151.0,0.00010041,2]
[360664157,1746919865402,-256.229314,0.00010041,2]
[360664158,1746919865411,-256.229314,0.00010041,2]
[360664159,1746919865421,-32842.80016953,0.00010041,2]
[360664160,1746919865430,-250.461382,0.00010136,2]
[360664161,1746919865439,-400.0,0.00010136,2]
[360664162,1746919865449,-400.0,0.00010136,2]
[360664163,1746919865458,-865.53,0.00010136,2]
[360664164,1746919865467,-528.68,0.00010136,2]
[360664165,1746919865477,-209.32,0.00010136,2]
[360664166,1746919865486,-400.0,0.00010136,2]
[360664167,1746919865495,-400.0,0.00010136,2]
[360664168,1746919865506,-478.40756914,0.00010136,2]
[360664169,1746919865515,-400.0,0.00010136,2]
[360664170,1746919865524,-400.0,0.00010136,2]
[360664171,1746919865533,-400.0,0.00010136,2]
[360664172,1746919865542,-400.0,0.00010136,2]
[360664173,1746919865551,-400.0,0.00010136,2]
[360664174,1746919865561,-400.0,0.00010136,2]
[360664175,1746919865574,-400.0,0.00010136,2]
[360664176,1746919865583,-400.0,0.00010136,2]
[360664177,1746919865593,-400.0,0.00010136,2]
[360664178,1746919865604,-400.0,0.00010136,2]
[360664179,1746919865615,-546.43,0.00010136,2]
[360664180,1746919865624,-400.0,0.00010136,2]
[360664181,1746919865634,-354.56,0.00010136,2]
[360664182,1746919865645,-400.0,0.00010136,2]
[360664183,1746919865654,-400.0,0.00010136,2]
[360664184,1746919865663,-412.16,0.00010136,2]
[360664185,1746919865672,-548.88467427,0.00010136,2]
[360664186,1746919865681,-512.56,0.00010136,2]
[360664187,1746919865691,-400.0,0.00010136,2]
[360664188,1746919865700,-400.0,0.00010136,2]
[360664189,1746919865709,-400.0,0.00010136,2]
[360664190,1746919865719,-156.72,0.00010136,2]
[360664191,1746919865728,-400.0,0.00010136,2]
[360664192,1746919865737,-400.0,0.00010136,2]
[360664193,1746919865746,-358.24,0.00010136,2]
[360664194,1746919865756,-400.0,0.00010136,2]
[360664195,1746919865765,-375.72,0.00010136,2]
[360664196,1746919865775,-400.0,0.00010136,2]
[360664197,1746919865783,-400.0,0.00010136,2]
[360664198,1746919865792,-400.0,0.00010136,2]
[360664199,1746919865802,-962.41,0.00010136,2]
[360664200,1746919865812,-400.0,0.00010136,2]
[360664201,1746919865821,-400.0,0.00010136,2]
[360664202,1746919865831,-400.0,0.00010136,2]
[360664203,1746919865840,-400.0,0.00010136,2]
[360664204,1746919865852,-400.0,0.00010136,2]
[360664205,1746919865862,-400.0,0.00010136,2]
[360664206,1746919865872,-1549.18,0.00010136,2]
[360664207,1746919865882,-755.49,0.00010136,2]
[360664208,1746919865892,-400.0,0.00010136,2]
[360664209,1746919865902,-305.48,0.00010136,2]
[360664210,1746919865912,-400.0,0.00010136,2]
[360664211,1746919865921,-1593.66,0.00010136,2]
[360664212,1746919865931,-689.13,0.00010136,2]
[360664213,1746919865940,-400.0,0.00010136,2]
[360664214,1746919865950,-449.93,0.00010136,2]
[360664215,1746919865959,-400.0,0.00010136,2]
[360664216,1746919865969,-400.0,0.00010136,2]
[360664217,1746919865978,-602.99,0.00010136,2]
[360664218,1746919865988,-400.0,0.00010136,2]
[360664219,1746919865998,-400.0,0.00010136,2]
[360664220,1746919866008,-400.0,0.00010136,2]
[360664221,1746919866018,-400.0,0.00010136,2]
[360664222,1746919866028,-377.2,0.00010136,2]
[360664223,1746919866037,-688.41,0.00010136,2]
[360664224,1746919866047,-615.65,0.00010136,2]
[360664225,1746919866057,-1027.73,0.00010136,2]
[360664226,1746919866067,-400.0,0.00010136,2]
[360664227,1746919866076,-266.4,0.00010136,2]
[360664228,1746919866086,-456.06,0.00010136,2]
[360664229,1746919866096,-400.0,0.00010136,2]
[360664230,1746919866107,-400.0,0.00010136,2]
[360664231,1746919866117,-400.0,0.00010136,2]
[360664232,1746919866126,-400.0,0.00010136,2]
[360664233,1746919866136,-400.0,0.00010136,2]
[360664234,1746919866146,-489.07,0.00010136,2]
[360664235,1746919866155,-400.0,0.00010136,2]
[360664236,1746919866298,-400.0,0.00010136,2]
[360664237,1746919866309,-1221.07,0.00010136,2]
[360664238,1746919866320,-400.0,0.00010136,2]
[360664239,1746919866329,-400.0,0.00010136,2]
[360664240,1746919866339,-400.0,0.00010136,2]
[360664241,1746919866350,-400.0,0.00010136,2]
[360664242,1746919866360,-400.0,0.00010136,2]
[360664243,1746919866369,-400.0,0.00010136,2]
[360664244,1746919866379,-400.0,0.00010136,2]
[360664245,1746919866389,-400.0,0.00010136,2]
[360664246,1746919866398,-400.0,0.00010136,2]
[360664247,1746919866408,-400.0,0.00010136,2]
[360664248,1746919866418,-400.0,0.00010136,2]
[360664249,1746919866428,-400.0,0.00010136,2]
[360664250,1746919866438,-400.0,0.0001041,2]
[360664251,1746919866447,-400.0,0.0001041,2]
[360664252,1746919866457,-865.53,0.0001041,2]
[360664253,1746919866468,-400.0,0.0001041,2]
[360664254,1746919866478,-400.0,0.0001041,2]
[360664255,1746919866488,-400.0,0.0001041,2]
[360664256,1746919866497,-400.0,0.0001041,2]
[360664257,1746919866506,-400.0,0.0001041,2]
[360664258,1746919866516,-400.0,0.0001041,2]
[360664259,1746919866528,-400.0,0.0001041,2]
[360664260,1746919866538,-400.0,0.0001041,2]
[360664261,1746919866548,-543.93948036,0.0001041,2]
[360664262,1746919866559,-400.0,0.0001041,2]
[360664263,1746919866568,-400.0,0.0001041,2]
[360664264,1746919866577,-400.0,0.0001041,2]
[360664265,1746919866586,-400.0,0.0001041,2]
[360664266,1746919866596,-400.0,0.0001041,2]
[360664267,1746919866607,-400.0,0.0001041,2]
[360664268,1746919866617,-151.0,0.0001041,2]
[360664269,1746919866626,-400.0,0.0001041,2]
[360664270,1746919866637,-206.53,0.0001041,2]
[360664271,1746919866647,-400.0,0.0001041,2]
[360664272,1746919866656,-400.0,0.0001041,2]
[360664273,1746919866666,-400.0,0.0001041,2]
[360664274,1746919866676,-400.0,0.0001041,2]
[360664275,1746919866685,-400.0,0.0001041,2]
[360664276,1746919866696,-151.0,0.0001041,2]
[360664277,1746919866707,-400.0,0.0001041,2]
[360664278,1746919866717,-400.0,0.0001041,2]
[360664279,1746919866728,-962.41,0.0001041,2]
[360664280,1746919866738,-327.16,0.0001041,2]
[360664281,1746919866748,-400.0,0.0001041,2]
[360664282,1746919866759,-151.0,0.0001041,2]
[360664283,1746919866768,-400.0,0.0001041,2]
[360664284,1746919866777,-400.0,0.0001041,2]
[360664285,1746919866788,-400.0,0.0001041,2]
[360664286,1746919866797,-400.0,0.0001041,2]
[360664287,1746919866807,-1549.18,0.0001041,2]
[360664288,1746919866817,-755.49,0.0001041,2]
[360664289,1746919866827,-400.0,0.0001041,2]
[360664290,1746919866836,-400.0,0.0001041,2]
[360664291,1746919866845,-1593.66,0.0001041,2]
[360664292,1746919866858,-689.13,0.0001041,2]
[360664293,1746919866868,-400.0,0.0001041,2]
[360664294,1746919866880,-449.93,0.0001041,2]
[360664295,1746919866890,-400.0,0.0001041,2]
[360664296,1746919866899,-400.0,0.0001041,2]
[360664297,1746919866909,-602.99,0.0001041,2]
[360664298,1746919866919,-400.0,0.0001041,2]
[360664299,1746919866929,-400.0,0.0001041,2]
[360664300,1746919866939,-400.0,0.0001041,2]
[360664301,1746919866948,-400.0,0.0001041,2]
[360664302,1746919866958,-688.41,0.0001041,2]
[360664303,1746919866968,-615.65,0.0001041,2]
[360664304,1746919866978,-1027.73,0.0001041,2]
[360664305,1746919866987,-400.0,0.0001041,2]
[360664306,1746919866997,-456.06,0.0001041,2]
[360664307,1746919867007,-491.36,0.0001041,2]
[360664308,1746919867017,-400.0,0.0001041,2]
[360664309,1746919867027,-400.0,0.0001041,2]
[360664310,1746919867036,-245.8,0.0001041,2]
[360664311,1746919867046,-400.0,0.0001041,2]
[360664312,1746919867056,-229.891876,0.0001041,2]
[360664313,1746919867066,-489.07,0.0001041,2]
[360664314,1746919867076,-151.0,0.0001041,2]
[360664315,1746919867086,-151.0,0.0001041,2]
[360664316,1746919867096,-400.0,0.0001041,2]
[360664317,1746919867109,-400.0,0.0001041,2]
[360664318,1746919867119,-1221.07,0.0001041,2]
[360664319,1746919867129,-253.24,0.0001041,2]
[360664320,1746919867139,-400.0,0.0001041,2]
[360664321,1746919867149,-400.0,0.0001041,2]
[360664322,1746919867159,-400.0,0.0001041,2]
[360664323,1746919867169,-400.0,0.0001041,2]
[360664324,1746919867178,-400.0,0.0001041,2]
[360664325,1746919867188,-400.0,0.0001041,2]
[360664326,1746919867198,-489.16,0.0001041,2]
[360664327,1746919867207,-400.0,0.0001041,2]
[360664328,1746919867218,-400.0,0.0001041,2]
[360664329,1746919867227,-400.0,0.0001041,2]
[360664330,1746919867238,-400.0,0.0001041,2]
[360664331,1746919867247,-250.0,0.00010411,2]
[360664332,1746919867257,-1035.72390633,0.000105,2]
[360664333,1746919867266,-542.11629846,0.000105,2]
[360664334,1746919867276,-151.0,0.00010684,2]
[360664335,1746919867285,-400.0,0.00010684,2]
[360664336,1746919867295,-400.0,0.00010684,2]
[360664337,1746919867305,-865.53,0.00010684,2]
[360664338,1746919867315,-400.0,0.00010684,2]
[360664339,1746919867327,-400.0,0.00010684,2]
[360664340,1746919867339,-400.0,0.00010684,2]
[360664341,1746919867350,-400.0,0.00010684,2]
[360664342,1746919867360,-400.0,0.00010684,2]
[360664343,1746919867370,-400.0,0.00010684,2]
[360664344,1746919867379,-400.0,0.00010684,2]
[360664345,1746919867389,-151.0,0.00010684,2]
[360664346,1746919867399,-314.71,0.00010684,2]
[360664347,1746919867410,-351.31,0.00010684,2]
[360664348,1746919867420,-400.0,0.00010684,2]
[360664349,1746919867429,-400.0,0.00010684,2]
[360664350,1746919867439,-400.0,0.00010684,2]
[360664351,1746919867449,-400.0,0.00010684,2]
[360664352,1746919867459,-400.0,0.00010684,2]
[360664353,1746919867468,-297.84,0.00010684,2]
[360664354,1746919867478,-400.0,0.00010684,2]
[360664355,1746919867489,-151.0,0.00010684,2]
[360664356,1746919867499,-400.0,0.00010684,2]
[360664357,1746919867508,-400.0,0.00010684,2]
[360664358,1746919867519,-400.0,0.00010684,2]
[360664359,1746919867528,-256.229314,0.00010684,2]
[360664360,1746919867537,-400.0,0.00010684,2]
[360664361,1746919867548,-256.229314,0.00010684,2]
[360664362,1746919867558,-400.0,0.00010684,2]
[360664363,1746919867571,-400.0,0.00010684,2]
[360664364,1746919867581,-962.41,0.00010684,2]
[360664365,1746919867590,-400.0,0.00010684,2]
[360664366,1746919867600,-400.0,0.00010684,2]
[360664367,1746919867611,-400.0,0.00010684,2]
[360664368,1746919867621,-400.0,0.00010684,2]
[360664369,1746919867631,-400.0,0.00010684,2]
[360664370,1746919867642,-1549.18,0.00010684,2]
[360664371,1746919867652,-755.49,0.00010684,2]
[360664372,1746919867662,-400.0,0.00010684,2]
[360664373,1746919867671,-238.71,0.00010684,2]
[360664374,1746919867681,-1593.66,0.00010684,2]
[360664375,1746919867690,-689.13,0.00010684,2]
[360664376,1746919867700,-400.0,0.00010684,2]
[360664377,1746919867710,-449.93,0.00010684,2]
[360664378,1746919867719,-400.0,0.00010684,2]
[360664379,1746919867728,-400.0,0.00010684,2]
[360664380,1746919867738,-602.99,0.00010684,2]
[360664381,1746919867747,-400.0,0.00010684,2]
[360664382,1746919867757,-400.0,0.00010684,2]
[360664383,1746919867766,-400.0,0.00010684,2]
[360664384,1746919867776,-400.0,0.00010684,2]
[360664385,1746919867787,-688.41,0.00010684,2]
[360664386,1746919867796,-615.65,0.00010684,2]
[360664387,1746919867806,-1027.73,0.00010684,2]
[360664388,1746919867815,-400.0,0.00010684,2]
[360664389,1746919867822,-456.06,0.00010684,2]
[360664390,1746919867831,-400.0,0.00010684,2]
[360664391,1746919867840,-400.0,0.00010684,2]
[360664392,1746919867851,-400.0,0.00010684,2]
[360664393,1746919867860,-489.07,0.00010684,2]
[360664394,1746919867869,-400.0,0.00010684,2]
[360664395,1746919867885,-400.0,0.00010684,2]
[360664396,1746919867899,-1221.07,0.00010684,2]
[360664397,1746919867913,-281.28,0.00010684,2]
[360664398,1746919867927,-400.0,0.00010684,2]
[360664399,1746919867940,-400.0,0.00010684,2]
[360664400,1746919867952,-400.0,0.00010684,2]
[360664401,1746919867966,-400.0,0.00010684,2]
[360664402,1746919867979,-400.0,0.00010684,2]
[360664403,1746919867992,-400.0,0.00010684,2]
[360664404,1746919868005,-400.0,0.00010684,2]
[360664405,1746919868018,-400.0,0.00010684,2]
[360664406,1746919868031,-400.0,0.00010684,2]
[360664407,1746919868048,-168.48,0.00010958,2]
[360664408,1746919868062,-540.24,0.00010958,2]
[360664409,1746919868076,-865.53,0.00010958,2]
[360664410,1746919868088,-400.0,0.00010958,2]
[360664411,1746919868103,-400.0,0.00010958,2]
[360664412,1746919868116,-400.0,0.00010958,2]
[360664413,1746919868128,-365.97,0.00010958,2]
[360664414,1746919868140,-400.0,0.00010958,2]
[360664415,1746919868154,-400.0,0.00010958,2]
[360664416,1746919868166,-400.0,0.00010958,2]
[360664417,1746919868178,-400.0,0.00010958,2]
[360664418,1746919868189,-382.06,0.00010958,2]
[360664419,1746919868203,-400.0,0.00010958,2]
[360664420,1746919868217,-400.0,0.00010958,2]
[360664421,1746919868227,-400.0,0.00010958,2]
[360664422,1746919868241,-400.0,0.00010958,2]
[360664423,1746919868252,-400.0,0.00010958,2]
[360664424,1746919868265,-400.0,0.00010958,2]
[360664425,1746919868277,-400.0,0.00010958,2]
[360664426,1746919868290,-400.0,0.00010958,2]
[360664427,1746919868303,-400.0,0.00010958,2]
[360664428,1746919868316,-962.41,0.00010958,2]
[360664429,1746919868331,-400.0,0.00010958,2]
[360664430,1746919868343,-151.0,0.00010958,2]
[360664431,1746919868356,-400.0,0.00010958,2]
[360664432,1746919868366,-400.0,0.00010958,2]
[360664433,1746919868377,-400.0,0.00010958,2]
[360664434,1746919868390,-309.16,0.00010958,2]
[360664435,1746919868404,-1549.18,0.00010958,2]
[360664436,1746919868416,-755.49,0.00010958,2]
[360664437,1746919868429,-400.0,0.00010958,2]
[360664438,1746919868440,-1593.66,0.00010958,2]
[360664439,1746919868451,-689.13,0.00010958,2]
[360664440,1746919868463,-400.0,0.00010958,2]
[360664441,1746919868475,-449.93,0.00010958,2]
[360664442,1746919868488,-400.0,0.00010958,2]
[360664443,1746919868499,-400.0,0.00010958,2]
[360664444,1746919868510,-602.99,0.00010958,2]
[360664445,1746919868521,-400.0,0.00010958,2]
[360664446,1746919868534,-400.0,0.00010958,2]
[360664447,1746919868546,-400.0,0.00010958,2]
[360664448,1746919868558,-400.0,0.00010958,2]
[360664449,1746919868572,-688.41,0.00010958,2]
[360664450,1746919868584,-615.65,0.00010958,2]
[360664451,1746919868596,-1027.73,0.00010958,2]
[360664452,1746919868610,-400.0,0.00010958,2]
[360664453,1746919868620,-456.06,0.00010958,2]
[360664454,1746919868632,-400.0,0.00010958,2]
[360664455,1746919868645,-400.0,0.00010958,2]
[360664456,1746919868657,-323.41899603,0.00010958,2]
[360664457,1746919868938,-76.58100397,0.00010958,2]
[360664458,1746919868950,-489.07,0.00010958,2]
[360664459,1746919868962,-400.0,0.00010958,2]
[360664460,1746919868973,-400.0,0.00010958,2]
[360664461,1746919868985,-1221.07,0.00010958,2]
[360664462,1746919868996,-400.0,0.00010958,2]
[360664463,1746919869008,-400.0,0.00010958,2]
[360664464,1746919869019,-400.0,0.00010958,2]
[360664465,1746919869032,-400.0,0.00010958,2]
[360664466,1746919869043,-400.0,0.00010958,2]
[360664467,1746919869055,-400.0,0.00010958,2]
[360664468,1746919869067,-400.0,0.00010958,2]
[360664469,1746919869079,-400.0,0.00010958,2]
[360664470,1746919869091,-400.0,0.00010958,2]
[360664471,1746919869102,-4299.27899603,0.00010959,2]
[360664472,1746919877602,200.0,0.00010959,10]
[360664473,1746919877946,200.0,0.00010959,10]
[360664474,1746919878240,200.0,0.00010959,10]
[360664475,1746919878525,200.0,0.00010959,10]
[360664476,1746919878894,200.0,0.00010959,10]
[360664477,1746919879877,200.0,0.00010959,10]
[360664478,1746919880269,200.0,0.00010959,10]
[360664479,1746919880636,200.0,0.00010959,10]
[360664480,1746919880946,200.0,0.00010959,10]
[360664481,1746919881341,200.0,0.00010959,10]
[360664482,1746919881711,200.0,0.00010959,10]
[360664483,1746919882111,200.0,0.00010959,10]
[360664484,1746919882476,200.0,0.00010959,10]
[360664485,1746919882873,200.0,0.00010959,10]
[360664486,1746919883243,200.0,0.00010959,10]
[360664487,1746919883620,200.0,0.00010959,10]
[360664488,1746919884016,200.0,0.00010959,10]
[360664489,1746919884380,200.0,0.00010959,10]
[360664490,1746919884572,370000.0,8.019e-05,2]
[360664491,1746919884922,200.0,0.00010959,10]
[360664492,1746919885126,200.0,0.00010959,10]
[360664493,1746919885453,200.0,0.00010959,10]
[360664494,1746919885868,200.0,0.00010959,10]
[360664495,1746919886268,200.0,0.00010959,10]
[360664496,1746919887219,200.0,0.00010959,10]
[360664497,1746919887583,200.0,0.00010959,10]
[360664498,1746919887879,200.0,0.00010959,10]
[360664499,1746919888200,200.0,0.00010959,10]
[360664500,1746919888525,200.0,0.00010959,10]
[360664501,1746919888829,200.0,0.00010959,10]
[360664502,1746919889719,200.0,0.00010959,10]
[360664503,1746919890037,200.0,0.00010959,10]
[360664504,1746919890324,200.0,0.00010959,10]
[360664505,1746919890619,200.0,0.00010959,10]
[360664506,1746919890990,200.0,0.00010959,10]
[360664507,1746919891273,200.0,0.00010959,10]
[360664508,1746919891576,200.0,0.00010959,10]
[360664509,1746919891893,200.0,0.00010959,10]
[360664510,1746919892176,200.0,0.00010959,10]
[360664511,1746919892554,200.0,0.00010959,10]
[360664512,1746919893121,200.0,0.00010959,10]
[360664513,1746919893399,200.0,0.00010959,10]
[360664514,1746919893677,200.0,0.00010959,10]
[360664515,1746919894033,281.530763,0.00010959,10]
[360664519,1746920525596,235.0,9e-05,8]
[360664520,1746920526346,163.0,9e-05,8]
[360664521,1746920526681,347.0,9e-05,8]
[360664522,1746920527261,421.0,9e-05,8]
[360664523,1746920527780,245.0,9e-05,8]
[360664524,1746920528342,367.0,9e-05,8]
[360664525,1746920528879,260.0,9e-05,8]
[360664526,1746920529408,398.0,9e-05,8]
[360664527,1746920529927,286.0,9e-05,8]
[360664528,1746920530473,161.0,9e-05,8]
[360664529,1746920641070,230.0,0.00022,120]
[360664530,1746920667056,1700.0,0.00022,120]
[360664575,1746921032534,-300.0,8.184e-05,2]
[360664576,1746921032545,-500.0,8.185e-05,2]
[360664577,1746921032555,-500.0,8.185e-05,2]
[360664578,1746921032566,-235.41964536,8.185e-05,2]
[360664609,1746921038435,-500.0,8.184e-05,2]
[360664611,1746921038445,-500.0,8.184e-05,2]
[360664613,1746921038455,-446.79986712,8.184e-05,2]
[360664614,1746921038465,-298.09230318,8.184e-05,2]
[360664616,1746921038475,-500.0,8.184e-05,2]
[360664618,1746921038485,-500.0,8.184e-05,2]
[360664620,1746921038494,-500.0,8.184e-05,2]
[360664622,1746921038504,-390.48508665,8.184e-05,2]
[360664624,1746921038514,-500.0,8.184e-05,2]
[360664625,1746921038523,-500.0,8.184e-05,2]
[360664627,1746921038532,-500.0,8.184e-05,2]
[360664629,1746921038542,-500.0,8.184e-05,2]
[360664631,1746921038551,-500.0,8.184e-05,2]
[360664633,1746921038560,-4944.77908885,8.185e-05,2]
[360664635,1746921038575,-7258.37988084,8.185e-05,2]
[360664637,1746921038586,-11109.0,8.185e-05,2]
[360664644,1746921038645,-1004.87,8.185e-05,2]
[360665215,1746921045818,-25682.97103031,8.185e-05,2]
[360665217,1746921045828,-1137932.031549,8.186e-05,2]
[360665219,1746921045838,-400.0,8.219e-05,2]
[360665221,1746921045848,-400.0,8.219e-05,2]
[360665223,1746921045857,-513.74977482,8.219e-05,2]
[360665225,1746921045867,-400.0,8.219e-05,2]
[360665227,1746921045876,-400.0,8.219e-05,2]
[360665229,1746921045885,-400.0,8.219e-05,2]
[360665231,1746921045894,-170.58369148,8.219e-05,2]
[360665233,1746921045904,-400.0,8.219e-05,2]
[360665235,1746921045914,-400.0,8.219e-05,2]
[360665237,1746921045923,-400.0,8.219e-05,2]
[360665239,1746921045934,-400.0,8.219e-05,2]
[360665241,1746921045947,-400.0,8.219e-05,2]
[360665243,1746921045956,-400.0,8.219e-05,2]
[360665245,1746921045966,-328.53188237,8.219e-05,2]
[360665247,1746921045975,-400.0,8.219e-05,2]
[360665249,1746921045984,-400.0,8.219e-05,2]
[360665251,1746921045994,-400.0,8.219e-05,2]
[360665253,1746921046003,-400.0,8.219e-05,2]
[360665255,1746921046013,-400.0,8.219e-05,2]
[360665257,1746921046023,-400.0,8.219e-05,2]
[360665259,1746921046033,-400.0,8.219e-05,2]
[360665261,1746921046043,-400.0,8.219e-05,2]
[360665263,1746921046052,-424.66012699,8.219e-05,2]
[360665265,1746921046061,-400.0,8.219e-05,2]
[360665267,1746921046071,-400.0,8.219e-05,2]
[360665269,1746921046080,-400.0,8.219e-05,2]
[360665271,1746921046090,-400.0,8.219e-05,2]
[360665273,1746921046099,-400.0,8.219e-05,2]
[360665275,1746921046109,-400.0,8.219e-05,2]
[360665277,1746921046119,-400.0,8.219e-05,2]
[360665279,1746921046129,-486.4435265,8.219e-05,2]
[360665281,1746921046138,-158.79425928,8.219e-05,2]
[360665283,1746921046148,-400.0,8.219e-05,2]
[360665285,1746921046158,-400.0,8.219e-05,2]
[360665287,1746921046167,-400.0,8.219e-05,2]
[360665289,1746921046176,-234.81974039,8.219e-05,2]
[360665291,1746921046186,-400.0,8.219e-05,2]
[360665293,1746921046195,-400.0,8.219e-05,2]